bitfinex/quotes_SOLUSD_20250920
["timestamp","ask_amount","ask_price","bid_price","bid_amount"]
[1758344861024,34.02017724,239.08,239.07,36.2028753]
[1758344861242,2.82017724,239.08,239.07,36.2028753]
[1758344861535,2.82017724,239.08,239.07,36.8628753]
[1758344861753,2.82017724,239.1,239.07,47.32006357]
[1758344861940,2.82017724,239.09,239.07,47.32006357]
[1758344862132,2.82017724,239.08,239.07,47.32006357]
[1758344862440,2.82017724,239.1,239.07,47.32006357]
[1758344862648,2.82017724,239.09,239.07,47.32006357]
[1758344862827,2.82017724,239.1,239.07,47.32006357]
[1758344863031,2.82017724,239.09,239.07,47.32006357]
[1758344863224,2.82017724,239.1,239.07,47.32006357]
[1758344863539,2.82017724,239.09,239.07,47.32006357]
[1758344863739,2.82017724,239.1,239.07,47.32006357]
[1758344863941,2.82017724,239.09,239.07,47.32006357]
[1758344864128,2.82017724,239.1,239.07,47.32006357]
[1758344865623,31.2,239.09,239.07,46.66006357]
[1758344867042,31.89,239.09,239.07,10.45718827]
[1758344867248,33.14553607,239.09,239.08,32.0]
[1758344867422,35.9594772,239.09,239.08,32.0]
[1758344867847,34.70394113,239.09,239.07,10.45718827]
[1758344868049,31.89,239.09,239.08,32.0]
[1758344868251,34.70409027,239.09,239.08,36.18270035]
[1758344868461,34.70409027,239.09,239.06,4.18292985]
[1758344868749,4.06945181,239.08,239.07,32.0]
[1758344868936,1.25553607,239.08,239.07,32.0]
[1758344869635,1.25553607,239.08,239.07,36.1828753]
[1758344870650,4.75945181,239.09,239.07,36.1828753]
[1758344872349,4.06945181,239.09,239.07,36.1828753]
[1758344872551,4.06945181,239.09,239.07,36.8428753]
[1758344872752,2.81391574,239.09,239.07,36.8428753]
[1758344873123,2.81391574,239.09,239.07,36.1828753]
[1758344873327,4.06945181,239.09,239.07,36.1828753]
[1758344874250,2.81391574,239.09,239.07,36.1828753]
[1758344877848,4.06945181,239.09,239.07,36.1828753]
[1758344879239,4.71945181,239.09,239.07,36.1828753]
[1758344879758,4.06945181,239.09,239.07,36.1828753]
[1758344881558,4.06945181,239.09,239.05,11.12786942]
[1758344881762,1.25553607,239.06,239.03,4.18357528]
[1758344882055,1.25553607,239.04,239.02,4.18373179]
[1758344882271,1.25553607,239.04,239.03,32.0]
[1758344882457,1.25553607,239.04,239.0,4.85393399]
[1758344882766,1.25553607,239.02,239.01,32.67]
[1758344883152,1.25553607,239.03,239.01,32.67]
[1758344883962,1.25553607,239.03,239.01,4.85389916]
[1758344884152,1.25553607,239.03,239.01,4.18389916]
[1758344884343,1.25553607,239.03,239.02,32.0]
[1758344885377,1.25553607,239.03,239.02,36.18375031]
[1758344885659,4.0699614,239.04,239.02,36.85375031]
[1758344885855,4.0699614,239.04,239.03,0.67]
[1758344886053,4.0699614,239.04,239.02,36.18375031]
[1758344886266,4.0699614,239.04,239.02,36.85375031]
[1758344887994,2.81442533,239.04,239.03,0.67]
[1758344888353,2.81442533,239.04,239.02,32.0]
[1758344888556,4.0699614,239.04,239.02,32.67]
[1758344889486,4.0699614,239.04,239.02,36.85373224]
[1758344890283,2.81442533,239.04,239.03,0.67]
[1758344891561,4.0699614,239.04,239.03,4.85357528]
[1758344892871,4.0699614,239.04,239.03,36.85357528]
[1758344896993,2.81442533,239.04,239.03,36.85357528]
[1758344899287,2.81442533,239.05,239.03,36.85357528]
[1758344899466,2.81442533,239.08,239.04,0.67]
[1758344899662,1.25553607,239.1,239.05,36.18322526]
[1758344899663,2.81442533,239.07,239.05,36.18322526]
[1758344899882,2.81442533,239.06,239.05,36.18322526]
[1758344900080,34.01442533,239.07,239.05,36.18322526]
[1758344900384,2.81442533,239.06,239.05,36.18322526]
[1758344900882,2.81442533,239.06,239.05,36.85322526]
[1758344905593,31.2,239.1,239.05,47.31128842]
[1758344905891,2.8188245,239.09,239.06,0.71]
[1758344906087,2.8188245,239.08,239.07,32.0]
[1758344906390,2.8188245,239.09,239.07,32.71]
[1758344906595,2.8188245,239.08,239.07,36.1828753]
[1758344906789,2.8188245,239.09,239.07,36.1828753]
[1758344906968,31.2,239.1,239.07,36.1828753]
[1758344906969,2.8188245,239.08,239.07,36.1828753]
[1758344907292,2.8188245,239.09,239.07,36.8928753]
[1758344907501,2.8188245,239.08,239.07,36.1828753]
[1758344907703,2.8188245,239.09,239.07,36.1828753]
[1758344908075,31.2,239.1,239.08,0.71]
[1758344908379,31.2,239.1,239.09,31.98]
[1758344908694,34.01835879,239.1,239.09,32.69]
[1758344909393,34.01835879,239.1,239.09,36.8725254]
[1758344913278,31.2,239.1,239.09,36.8725254]
[1758344915692,34.01686219,239.1,239.09,36.8725254]
[1758344916502,34.01686219,239.1,239.09,4.8925254]
[1758344916699,34.01686219,239.1,239.09,36.8725254]
[1758344918807,34.01686219,239.1,239.09,36.1625254]
[1758344922305,34.73686219,239.1,239.09,31.98]
[1758344923276,34.01686219,239.1,239.09,31.98]
[1758344924678,31.2,239.1,239.09,31.98]
[1758344929315,31.2,239.1,239.09,32.69]
[1758344930599,31.2,239.09,239.05,4.18322526]
[1758344930799,2.68155602,239.09,239.06,31.98]
[1758344931393,1.96155602,239.09,239.06,32.69]
[1758344931690,14.53727231,239.09,239.06,32.69]
[1758344931890,14.53727231,239.09,239.06,36.87300568]
[1758344932410,14.53727231,239.09,239.02,0.71]
[1758344932411,31.2,239.06,239.02,0.71]
[1758344932589,1.96155602,239.05,239.03,31.98]
[1758344933301,12.57835266,239.04,239.03,31.98]
[1758344934215,14.53990868,239.04,239.03,31.98]
[1758344935303,12.57835266,239.04,239.03,32.69]
[1758344936608,1.96155602,239.08,239.03,36.87357528]
[1758344936917,12.5778253,239.05,239.04,0.68]
[1758344937105,15.395442,239.05,239.04,0.68]
[1758344937290,2.8176167,239.05,239.04,0.68]
[1758344937492,15.39386018,239.08,239.04,0.68]
[1758344937685,2.8176167,239.07,239.05,31.98]
[1758344937903,12.57624348,239.08,239.06,0.68]
[1758344938124,2.81764569,239.07,239.06,0.68]
[1758344938303,2.81764569,239.07,239.06,32.66]
[1758344939414,2.81764569,239.07,239.06,36.84305028]
[1758344948420,2.81764569,239.08,239.06,36.84305028]
[1758344948726,2.81764569,239.08,239.07,0.7]
[1758344949304,12.57571629,239.1,239.07,0.7]
[1758344949529,2.81764569,239.09,239.08,31.98]
[1758344949715,2.81764569,239.09,239.08,32.68]
[1758344950724,2.81764569,239.09,239.08,36.86270035]
[1758344950927,2.82014344,239.09,239.08,47.31945122]
[1758344951142,2.81996139,239.1,239.08,47.31945122]
[1758344951435,2.81996139,239.1,239.09,0.7]
[1758344951930,2.81996139,239.12,239.09,2.66155602]
[1758344952235,1.96155602,239.17,239.1,34.62155602]
[1758344952415,31.2,239.15,239.11,0.7]
[1758344952727,2.81922651,239.14,239.12,31.96]
[1758344952906,2.81922689,239.14,239.13,4.88182578]
[1758344956327,34.01922689,239.14,239.13,4.88182578]
[1758344958236,31.2,239.14,239.13,4.88182578]
[1758344960242,31.2,239.14,239.13,4.18182578]
[1758344963838,33.16155602,239.14,239.13,31.96]
[1758344964045,33.82155602,239.14,239.13,31.96]
[1758344964434,36.63659277,239.14,239.13,31.96]
[1758344965353,36.63659277,239.14,239.11,4.18217556]
[1758344965652,31.86,239.14,239.13,31.96]
[1758344965838,34.67498833,239.14,239.13,31.96]
[1758344966346,34.67498833,239.14,239.09,4.18236028]
[1758344966553,3.49498833,239.13,239.1,31.96]
[1758344966755,1.96155602,239.11,239.1,31.96]
[1758344966954,1.96155602,239.12,239.1,31.96]
[1758344967252,1.96155602,239.12,239.1,32.62]
[1758344967842,4.77654435,239.13,239.11,4.18217556]
[1758344968031,1.96155602,239.13,239.12,31.96]
[1758344968859,1.96155602,239.13,239.11,4.18217556]
[1758344969052,1.96155602,239.13,239.12,31.96]
[1758344969753,2.64155602,239.13,239.12,31.96]
[1758344972745,1.96155602,239.13,239.12,31.96]
[1758344978763,2.64155602,239.13,239.12,31.96]
[1758344979263,5.45631802,239.13,239.12,31.96]
[1758344980465,4.77631802,239.13,239.12,31.96]
[1758344981777,4.07018531,239.13,239.12,31.96]
[1758344983477,4.07018531,239.13,239.1,0.66]
[1758344983672,4.07018531,239.13,239.04,89.97528073]
[1758344983673,32.45542331,239.11,239.07,0.66]
[1758344983972,2.81748907,239.1,239.08,32.62]
[1758344984175,1.25542331,239.09,239.08,32.62]
[1758344984355,1.25542331,239.09,239.08,31.96]
[1758344984684,1.25542331,239.09,239.08,32.62]
[1758344985469,1.25542331,239.09,239.08,0.66]
[1758344985648,1.25542331,239.09,239.08,32.62]
[1758344986269,1.25542331,239.09,239.08,0.66]
[1758344986472,1.25542331,239.09,239.08,32.62]
[1758344987970,1.25542331,239.09,239.08,0.66]
[1758344988284,1.25542331,239.1,239.08,32.62]
[1758344989091,4.07291238,239.1,239.08,32.62]
[1758344989296,32.45542331,239.1,239.09,31.96]
[1758344989465,35.27291238,239.1,239.09,31.96]
[1758344990490,35.27291238,239.1,239.09,32.62]
[1758344995983,34.01748907,239.1,239.09,32.62]
[1758344999584,34.01748907,239.1,239.08,0.71]
[1758344999878,31.2,239.1,239.09,31.96]
[1758345000085,34.02003897,239.1,239.09,31.96]
[1758345001782,34.02003897,239.1,239.09,32.64]
[1758345004888,34.02003897,239.1,239.09,36.8225254]
[1758345009070,34.02003897,239.1,239.09,36.1425254]
[1758345009272,34.02003897,239.1,239.09,31.96]
[1758345010198,34.02003897,239.1,239.09,31.94]
[1758345010878,34.02003897,239.1,239.09,32.62]
[1758345011479,34.02003897,239.1,239.09,31.94]
[1758345012194,34.68003897,239.1,239.04,12.33994027]
[1758345012505,1.25542331,239.08,239.05,32.62]
[1758345012702,2.82003897,239.07,239.03,4.18357528]
[1758345012885,1.91542331,239.08,239.04,31.94]
[1758345012886,1.25542331,239.06,239.04,31.94]
[1758345013087,1.25542331,239.06,239.04,32.62]
[1758345013400,1.25542331,239.06,239.04,0.68]
[1758345013593,0.66,239.08,239.05,31.94]
[1758345013789,32.45542331,239.06,239.05,31.94]
[1758345014091,35.27856891,239.06,239.05,31.94]
[1758345015793,35.27856891,239.06,239.04,0.68]
[1758345015993,32.45542331,239.06,239.05,31.94]
[1758345016194,35.27803079,239.06,239.05,31.94]
[1758345016395,35.27803079,239.06,239.05,32.62]
[1758345024716,35.27692375,239.06,239.05,32.62]
[1758345028010,35.27692375,239.06,239.05,31.94]
[1758345028219,31.2,239.05,239.01,0.69]
[1758345028517,32.45542331,239.03,239.02,31.94]
[1758345028998,45.03324861,239.03,239.02,31.94]
[1758345029402,1.25542331,239.05,239.02,32.63]
[1758345029600,1.25542331,239.05,239.03,0.69]
[1758345029800,4.07703679,239.05,239.04,31.94]
[1758345030017,1.25542331,239.05,239.04,31.94]
[1758345030211,4.07703679,239.05,239.04,31.94]
[1758345030413,16.65486208,239.05,239.04,31.94]
[1758345032319,16.65445749,239.05,239.04,31.94]
[1758345033115,17.35445749,239.05,239.04,31.94]
[1758345033414,31.2,239.03,239.0,4.87403456]
[1758345033629,1.25542331,239.02,239.01,32.63]
[1758345033821,1.25542331,239.02,239.01,31.94]
[1758345034001,13.83430337,239.02,239.01,31.94]
[1758345037420,13.83430337,239.02,239.0,4.87405996]
[1758345037627,13.83430337,239.02,239.01,31.94]
[1758345039617,13.83430337,239.02,239.01,32.63]
[1758345041932,12.57888006,239.02,239.01,36.81392535]
[1758345051838,12.57888006,239.02,239.01,36.12392535]
[1758345052026,12.57888006,239.02,239.01,36.81392535]
[1758345052926,12.57888006,239.02,239.01,36.12392535]
[1758345057544,12.57888006,239.02,239.01,36.82392535]
[1758345060246,12.57888006,239.02,239.01,32.64]
[1758345060541,12.57888006,239.02,239.01,31.94]
[1758345061353,12.57888006,239.02,239.01,36.79392535]
[1758345067850,12.57888006,239.02,239.01,36.77392535]
[1758345082665,12.57888006,239.02,239.01,52.33209618]
[1758345082870,1.96257682,239.08,239.01,62.79190957]
[1758345083055,2.82499065,239.07,239.02,0.67]
[1758345083241,2.82499065,239.06,239.03,31.92]
[1758345083441,14.5398748,239.08,239.04,0.67]
[1758345083648,14.5398748,239.08,239.01,30.20190957]
[1758345083649,31.2,239.06,239.05,32.59]
[1758345083943,14.5398748,239.08,239.05,32.59]
[1758345084147,2.82422968,239.07,239.06,4.18305028]
[1758345087250,14.5398748,239.08,239.06,4.18305028]
[1758345087567,14.5398748,239.08,239.07,31.92]
[1758345087744,17.36229444,239.08,239.07,31.92]
[1758345087945,15.39971762,239.08,239.07,31.92]
[1758345088146,2.82241964,239.08,239.07,31.92]
[1758345088366,14.5388203,239.09,239.07,36.1028753]
[1758345088658,1.96257682,239.09,239.07,36.1028753]
[1758345089256,4.78406677,239.09,239.07,36.1028753]
[1758345089976,33.16257682,239.08,239.07,36.1028753]
[1758345090149,35.98406677,239.08,239.07,36.1028753]
[1758345090470,35.98378675,239.08,239.07,36.1028753]
[1758345091052,36.68378675,239.08,239.07,31.92]
[1758345091652,36.68378675,239.08,239.06,4.18303262]
[1758345091855,33.16257682,239.07,239.06,4.18303262]
[1758345092066,33.16257682,239.07,239.06,36.10303262]
[1758345092372,1.96257682,239.07,239.06,36.10303262]
[1758345092765,33.16257682,239.07,239.06,36.10303262]
[1758345093450,33.16257682,239.07,239.06,31.92]
[1758345094358,31.2,239.07,239.06,4.85305028]
[1758345094570,31.2,239.07,239.06,36.77305028]
[1758345097881,1.96257682,239.09,239.06,36.77305028]
[1758345098758,1.96257682,239.09,239.06,36.10305028]
[1758345099074,31.2,239.08,239.07,4.85270107]
[1758345099858,31.2,239.08,239.07,4.18270107]
[1758345100679,2.66257682,239.08,239.06,36.10303618]
[1758345100975,1.96257682,239.07,239.06,36.10303618]
[1758345102163,1.96257682,239.08,239.06,36.10303618]
[1758345102377,4.78233546,239.08,239.06,36.10303618]
[1758345102581,1.96257682,239.08,239.06,36.77303618]
[1758345103379,4.78239333,239.08,239.06,36.77303618]
[1758345103581,4.78239333,239.08,239.06,36.10303618]
[1758345103785,4.07559045,239.08,239.06,36.10303618]
[1758345104589,4.07559045,239.08,239.06,36.77303618]
[1758345104883,4.07559045,239.08,239.06,4.85303618]
[1758345105060,32.45577394,239.08,239.06,4.85303618]
[1758345105260,32.45577394,239.08,239.07,31.9]
[1758345105461,35.27569958,239.08,239.07,31.9]
[1758345105958,35.27569958,239.08,239.07,36.0828753]
[1758345106388,32.45577394,239.08,239.07,36.0828753]
[1758345106597,32.45577394,239.08,239.07,4.1828753]
[1758345106760,32.45577394,239.08,239.07,36.0828753]
[1758345107883,32.45577394,239.08,239.07,36.7528753]
[1758345110680,32.45577394,239.08,239.07,36.0828753]
[1758345112789,32.45577394,239.08,239.07,31.9]
[1758345113082,35.97625796,239.08,239.07,31.9]
[1758345113488,35.27625796,239.08,239.07,31.9]
[1758345115088,35.27625796,239.08,239.07,36.0828753]
[1758345116568,34.02048402,239.08,239.07,36.0828753]
[1758345116890,35.27625796,239.08,239.07,36.0828753]
[1758345118890,31.2,239.07,239.06,4.85303055]
[1758345119193,34.02209562,239.07,239.06,36.75303055]
[1758345121492,34.02209562,239.07,239.04,4.18327158]
[1758345121688,31.2,239.07,239.05,32.62]
[1758345122765,31.2,239.07,239.05,36.80316045]
[1758345123593,31.2,239.07,239.06,0.72]
[1758345123903,34.02322231,239.07,239.06,0.72]
[1758345124492,2.82322231,239.07,239.06,4.90305028]
[1758345124699,1.25577394,239.09,239.06,4.90305028]
[1758345124888,2.82356862,239.08,239.07,32.62]
[1758345128477,2.82356862,239.08,239.07,36.8028753]
[1758345130488,2.82356862,239.08,239.07,4.9028753]
[1758345130789,2.82356862,239.08,239.07,36.8028753]
[1758345132774,2.82426001,239.09,239.07,47.26006357]
[1758345133081,2.82426001,239.11,239.08,0.72]
[1758345133288,2.82426001,239.1,239.09,31.9]
[1758345133493,2.82426001,239.11,239.09,32.62]
[1758345133700,2.82426001,239.1,239.09,31.9]
[1758345133882,2.82426001,239.11,239.1,4.18235048]
[1758345134271,2.82426001,239.11,239.1,4.90235048]
[1758345137683,2.82426001,239.13,239.1,4.90235048]
[1758345137886,2.82426001,239.12,239.11,32.6]
[1758345139477,2.82426001,239.12,239.11,36.06217556]
[1758345139678,2.82426001,239.12,239.11,4.18217556]
[1758345139910,2.82426001,239.12,239.11,36.06217556]
[1758345142206,2.82155568,239.12,239.11,36.06217556]
[1758345143101,2.82155568,239.12,239.11,36.78217556]
[1758345146009,2.82155568,239.12,239.11,36.06217556]
[1758345150424,4.07732962,239.12,239.09,0.66]
[1758345150597,1.91577394,239.11,239.1,31.88]
[1758345151093,1.25577394,239.11,239.1,31.88]
[1758345152000,1.25577394,239.11,239.1,36.06235048]
[1758345153518,1.25577394,239.11,239.1,36.72235048]
[1758345156898,4.07732962,239.12,239.1,36.72235048]
[1758345157919,4.07732962,239.12,239.1,32.54]
[1758345158112,4.07732962,239.12,239.1,31.88]
[1758345161241,4.07732962,239.12,239.1,32.54]
[1758345161524,4.07732962,239.12,239.11,0.66]
[1758345161829,2.82155568,239.12,239.1,36.06228694]
[1758345162124,12.574135,239.12,239.11,0.66]
[1758345162303,15.39569068,239.12,239.11,0.66]
[1758345163097,15.39569068,239.12,239.11,32.54]
[1758345163298,15.39569068,239.12,239.11,36.72217556]
[1758345165811,17.35705072,239.12,239.11,36.72217556]
[1758345166124,15.39569068,239.12,239.11,36.72217556]
[1758345168023,15.39569068,239.12,239.11,31.88]
[1758345168219,17.35705072,239.12,239.11,31.88]
[1758345169627,17.35705072,239.12,239.05,62.5]
[1758345169807,1.96136004,239.09,239.06,32.54]
[1758345170126,1.96136004,239.09,239.07,0.66]
[1758345170300,4.78291572,239.09,239.08,31.88]
[1758345170501,1.96136004,239.09,239.08,32.54]
[1758345170711,4.78291572,239.09,239.08,32.54]
[1758345170901,15.39674483,239.09,239.08,32.54]
[1758345171120,12.57518915,239.09,239.08,32.54]
[1758345171306,33.16136004,239.13,239.08,32.54]
[1758345171505,12.57466206,239.1,239.09,0.66]
[1758345171703,12.57466206,239.1,239.09,4.8425254]
[1758345171704,2.82352167,239.1,239.09,4.8425254]
[1758345172623,31.2,239.14,239.09,15.29883892]
[1758345172809,12.573608,239.12,239.1,32.54]
[1758345173006,2.8234665,239.11,239.1,31.88]
[1758345173612,2.8234665,239.11,239.1,32.54]
[1758345173825,2.8234665,239.13,239.11,4.18217556]
[1758345174015,12.573608,239.13,239.12,32.54]
[1758345174206,15.39724897,239.13,239.12,32.54]
[1758345175318,15.39724897,239.13,239.12,36.72200066]
[1758345178435,15.39724897,239.13,239.12,36.75200066]
[1758345178741,17.35860901,239.13,239.12,36.04200066]
[1758345179237,17.35860901,239.13,239.12,36.73200066]
[1758345180535,15.39724897,239.13,239.12,36.73200066]
[1758345182443,2.82364097,239.13,239.12,36.73200066]
[1758345182732,12.57255412,239.15,239.12,47.18700233]
[1758345182942,2.82364097,239.14,239.13,0.66]
[1758345183834,0.2,239.19,239.13,2.62136004]
[1758345184044,2.82318567,239.18,239.14,32.52]
[1758345184212,2.82318567,239.18,239.15,0.66]
[1758345184413,2.82318567,239.18,239.16,36.04130122]
[1758345184938,2.82318567,239.18,239.17,0.66]
[1758345186226,14.73286045,239.19,239.17,0.66]
[1758345186516,14.73286045,239.19,239.18,36.04095158]
[1758345186842,17.55238815,239.19,239.18,36.04095158]
[1758345187032,15.59102811,239.19,239.18,36.04095158]
[1758345188332,12.77150041,239.19,239.18,36.04095158]
[1758345196340,12.77150041,239.19,239.18,31.86]
[1758345196548,15.43286045,239.19,239.18,31.86]
[1758345197944,15.43286045,239.19,239.14,4.84164174]
[1758345198133,1.96136004,239.17,239.16,4.18130122]
[1758345200640,14.53286045,239.18,239.16,4.84130122]
[1758345200962,12.57150041,239.18,239.17,36.04112639]
[1758345207049,14.53286045,239.18,239.17,36.04112639]
[1758345209052,1.96136004,239.18,239.17,36.04112639]
[1758345209254,0.2,239.19,239.17,36.76112639]
[1758345209454,31.2,239.18,239.17,36.76112639]
[1758345211948,31.2,239.18,239.17,36.04112639]
[1758345212631,31.2,239.18,239.17,36.76112639]
[1758345216060,0.2,239.19,239.17,36.76112639]
[1758345216353,31.4,239.19,239.18,0.72]
[1758345216952,0.2,239.19,239.18,0.72]
[1758345217129,0.2,239.19,239.18,4.90095158]
[1758345227268,0.2,239.19,239.18,18.49654559]
[1758345227573,0.2,239.19,239.18,81.28086873]
[1758345228067,1e-08,239.19,239.18,81.28086873]
[1758345229559,1e-08,239.19,239.18,113.12086873]
[1758345231470,1e-08,239.19,239.18,114.37526076]
[1758345234473,1e-08,239.19,239.18,113.12086873]
[1758345234676,1e-08,239.19,239.18,114.37526076]
[1758345235670,1e-08,239.23,239.19,13.87991715]
[1758345235871,1e-08,239.23,239.22,13.87991715]
[1758345236176,1e-08,239.23,239.22,45.71991715]
[1758345236372,1e-08,239.23,239.22,46.38991715]
[1758345236774,1e-08,239.23,239.22,50.57016963]
[1758345237872,1e-08,239.23,239.22,51.82456166]
[1758345239889,1e-08,239.23,239.22,18.73016963]
[1758345240092,1e-08,239.23,239.22,49.61584649]
[1758345240265,1e-08,239.23,239.22,50.28584649]
[1758345241167,1e-08,239.23,239.22,49.61584649]
[1758345241682,1e-08,239.23,239.22,50.33584649]
[1758345242770,1e-08,239.23,239.22,18.78016963]
[1758345242983,1e-08,239.24,239.23,13.87991715]
[1758345243165,1e-08,239.24,239.23,14.59991715]
[1758345244804,1e-08,239.24,239.23,18.77999489]
[1758345248404,1e-08,239.24,239.23,18.05999489]
[1758345248608,1e-08,239.24,239.23,112.39999489]
[1758345249114,1e-08,239.24,239.23,113.11999489]
[1758345262218,1e-08,239.24,239.23,113.09999489]
[1758345264107,1e-08,239.24,239.23,81.27999489]
[1758345265839,0.1,239.26,239.24,0.28432314]
[1758345266019,0.1,239.26,239.25,14.56991715]
[1758345267237,0.1,239.26,239.25,18.74964546]
[1758345268626,0.1,239.26,239.25,20.00403749]
[1758345268820,0.1,239.26,239.25,18.74964546]
[1758345269216,0.1,239.26,239.25,20.00403749]
[1758345271328,0.1,239.26,239.25,18.74964546]
[1758345272426,0.1,239.26,239.25,18.05964546]
[1758345274431,0.1,239.26,239.25,30.48216733]
[1758345277237,0.82,239.26,239.25,30.48216733]
[1758345277614,0.1,239.26,239.25,62.30216733]
[1758345278222,0.1,239.26,239.25,124.80216733]
[1758345278542,0.1,239.26,239.25,125.49216733]
[1758345290163,0.1,239.26,239.25,124.80216733]
[1758345290867,0.1,239.26,239.25,92.98216733]
[1758345291168,0.1,239.26,239.25,124.80216733]
[1758345291965,0.1,239.26,239.25,92.98216733]
[1758345292169,0.1,239.26,239.25,124.80216733]
[1758345294963,0.1,239.26,239.25,125.49216733]
[1758345295354,0.1,239.26,239.25,124.80216733]
[1758345299376,0.1,239.26,239.25,92.98216733]
[1758345299571,0.1,239.26,239.25,124.80216733]
[1758345299751,0.1,239.26,239.25,125.47216733]
[1758345300069,0.1,239.26,239.25,92.98216733]
[1758345300277,0.77,239.26,239.25,124.80216733]
[1758345301478,0.77,239.26,239.25,124.51784419]
[1758345302984,0.1,239.26,239.25,124.51784419]
[1758345315293,0.1,239.26,239.25,125.18784419]
[1758345318496,0.1,239.26,239.25,124.51784419]
[1758345324692,2.73828091,239.26,239.25,31.82]
[1758345325385,2.73828091,239.26,239.24,4.17988564]
[1758345325575,2.05828091,239.26,239.25,31.82]
[1758345326081,2.76828091,239.26,239.25,31.82]
[1758345326778,31.2,239.25,239.21,6.36408042]
[1758345326977,1.95828091,239.23,239.22,31.82]
[1758345327289,2.66828091,239.23,239.22,31.82]
[1758345328181,1.95828091,239.23,239.22,31.82]
[1758345328581,2.66828091,239.23,239.22,31.82]
[1758345328782,1.95828091,239.23,239.22,36.00025248]
[1758345329877,1.95828091,239.23,239.22,4.18025248]
[1758345330110,1.95828091,239.23,239.22,36.00025248]
[1758345330301,45.72504183,239.25,239.22,36.68025248]
[1758345330503,33.15828091,239.25,239.22,36.68025248]
[1758345330802,45.72504183,239.25,239.22,36.68025248]
[1758345331189,15.23504183,239.25,239.22,36.68025248]
[1758345331397,1.95828091,239.24,239.22,36.68025248]
[1758345331804,1.95828091,239.24,239.23,36.00007774]
[1758345335603,2.66828091,239.24,239.23,36.00007774]
[1758345336108,1.95828091,239.24,239.23,36.00007774]
[1758345337010,1.95828091,239.24,239.23,31.82]
[1758345337309,2.66828091,239.24,239.23,31.82]
[1758345337906,2.66828091,239.24,239.22,4.18024508]
[1758345338111,0.71,239.24,239.23,31.82]
[1758345338310,2.66828091,239.24,239.23,31.82]
[1758345338807,15.23556826,239.24,239.23,31.82]
[1758345340890,14.52556826,239.24,239.23,31.82]
[1758345343507,14.52556826,239.24,239.21,18.90483085]
[1758345343711,14.52556826,239.24,239.22,31.82]
[1758345343888,2.66828091,239.24,239.22,31.82]
[1758345344090,12.56834035,239.23,239.22,31.82]
[1758345346212,14.52662126,239.23,239.22,31.82]
[1758345347812,13.82258211,239.23,239.22,31.82]
[1758345349516,12.56834035,239.23,239.22,31.82]
[1758345349695,13.82258211,239.23,239.22,31.82]
[1758345351513,12.56834035,239.23,239.22,31.82]
[1758345351703,12.56834035,239.23,239.22,36.68025248]
[1758345351902,1.25424176,239.23,239.22,36.68025248]
[1758345352911,12.56834035,239.24,239.22,36.68025248]
[1758345353121,1.25424176,239.23,239.22,36.00025248]
[1758345353816,1.25424176,239.23,239.22,36.68025248]
[1758345354012,13.82258211,239.24,239.22,36.68025248]
[1758345354924,12.56834035,239.24,239.22,36.68025248]
[1758345355101,13.82258211,239.24,239.23,4.86007774]
[1758345358013,13.82258211,239.24,239.23,4.18007774]
[1758345361429,13.82258211,239.24,239.22,31.82]
[1758345361627,1.95424176,239.23,239.22,31.82]
[1758345361838,1.25424176,239.23,239.22,31.82]
[1758345362024,12.56834035,239.24,239.22,31.82]
[1758345362224,1.25424176,239.23,239.22,36.70024767]
[1758345381548,12.56834035,239.24,239.22,36.70024767]
[1758345381746,1.25424176,239.23,239.22,36.00024767]
[1758345382549,1.25424176,239.23,239.22,36.70024767]
[1758345382749,12.56834035,239.24,239.22,36.70024767]
[1758345382948,0.1,239.26,239.23,0.7]
[1758345383123,0.1,239.26,239.24,31.82]
[1758345383440,0.1,239.26,239.25,0.7]
[1758345383860,0.1,239.26,239.25,4.87972831]
[1758345389965,0.1,239.26,239.25,67.37972831]
[1758345390950,0.1,239.26,239.25,80.97532232]
[1758345393944,0.1,239.26,239.25,18.47532232]
[1758345399868,0.1,239.26,239.25,80.97532232]
[1758345401453,0.1,239.26,239.25,82.65053957]
[1758345406255,0.1,239.26,239.25,82.93486271]
[1758345411677,0.1,239.26,239.25,84.89313258]